Cogmind - Beta 9.3 @@@ ROGUE MODE // 2019.12.29 @ 11:12:49 Player: 3.14 Result: Self-destructed Performance ------------- Evolutions (8) 4000 Regions Visited (22) 4400 Robots Destroyed (308) 1540 Value Destroyed (13788) 13788 Prototype IDs (53) 1060 Alien Tech Used (0) 0 Bonus (6671) 6671 TOTAL SCORE: 31459 Bonus ------- High Alert Combat Kills 1311 Follower Combat Kills 1946 Entered Garrisons 200 Used RIF Installer 500 Network Hubs Disabled 200 Built Enhanced Grunts 300 A7 Reached Mainframe 300 Met R17 at Cetus 500 Hacked Protovariant 500 Met R17 at Research 2000 Scanned by Researcher 500 Friendly Fire -1586 Cogmind --------- Core Integrity 1152/1450 Matter 74/300 Energy 190/190 System Corruption 11% Temperature Cool (54) Movement Treading (155) Location -2/Quarantine Parts ------- > --- POWER (1) -------- Light Quantum Reactor > --- PROPULSION (6) --- Centrium Heavy Treads Centrium Heavy Treads Biometal Heavy Treads > --- UTILITY (9) ------ Advanced Heat Sink High-capacity Storage Unit High-capacity Storage Unit Enhanced Optical Array Advanced Targeting Computer Advanced Target Analyzer Improved Core Analyzer Centrium Medium Armor Plating Relay Coupler [NC] (15) > --- WEAPON (7) ------- Heavy Machine Gun Heavy Machine Gun KE Penetrator KE Penetrator KE Penetrator KE Penetrator KE Penetrator > --- INVENTORY (20) --- Light Quantum Reactor Medium Treads Advanced Heat Sink Experimental Matter Compressor (500) Experimental Matter Compressor (500) Advanced Targeting Computer Advanced Phase Shifter Layered Medium Armor Plating Centrium Light Armor Plating Centrium Medium Armor Plating Subatomic Replicator Plasma Rifle Compact HERF Cannon Heavy Machine Gun KE Penetrator Advanced EMP Blaster Advanced EMP Blaster Tactical Quantum Warhead Advanced Remote Datajack Plasma Lance Peak State ------------ > --- POWER ------------ Quantum Reactor > --- PROPULSION ------- Advanced Heavy Treads Centrium Heavy Treads Centrium Heavy Treads > --- UTILITY ---------- Advanced Heat Sink High-capacity Storage Unit High-capacity Storage Unit Enhanced Optical Array Advanced Target Analyzer Improved Core Analyzer Advanced Kinecellerator Layered Medium Armor Plating Centrium Light Armor Plating > --- WEAPON ----------- KE Penetrator KE Penetrator KE Penetrator KE Penetrator KE Penetrator Railgun Improved KE Penetrator > --- INVENTORY -------- Compact Particle Reactor Centrium Heavy Treads Experimental Matter Compressor Experimental Matter Compressor Centrium Light Armor Plating Centrium Medium Armor Plating Centrium Medium Armor Plating Plasma Rifle Compact HERF Cannon Heavy Machine Gun KE Penetrator KE Penetrator Railgun Improved KE Penetrator Advanced EMP Blaster Advanced EMP Blaster Tactical Quantum Warhead Advanced Remote Datajack Plasma Lance [Rating: 168] Favorites ----------- Power Quantum Reactor Engine Ion Engine Power Core Enhanced Nuclear Core Reactor Quantum Reactor Propulsion Light Treads Treads Light Treads Leg Aluminum Leg Utility High-capacity Storage Unit Device Advanced Heat Sink Storage High-capacity Storage Unit Processor Enhanced Optical Array Hackware Relay Coupler [NC] Protection Centrium Medium Armor Plating Weapon KE Penetrator Energy Gun Improved Medium Laser Energy Cannon Advanced Beam Cannon Ballistic Gun KE Penetrator Launcher Advanced EMP Blaster Special Weapon Advanced Remote Datajack Slashing Weapon Chainsword Piercing Weapon Plasma Lance Build | -11 -10 -10 -9 -9 -9 -8 -8 -8 -8 -7 -7 -6 -5 -5 -5 -5 -5 -4 -3 -3 -2 -2 ------- Run | Scr Mat Min Mat Min Exi Min Mat Gar Mat Fac Sto Fac Fac Ext Cet Arc Hub Fac Res Tes Res Qua Slots Evolved 16 | . . . 2 . . . 2 . . 2 . 2 2 . . . . 2 2 . 2 . Power . | . . . . . . . . . . . . . . . . . . . . . . . Propulsion 4 | . . . . . . . 1 . . 1 . . 1 . . . . 1 . . . . Utility 7 | . . . 1 . . . . . . 1 . 1 1 . . . . 1 1 . 1 . Weapon 5 | . . . 1 . . . 1 . . . . 1 . . . . . . 1 . 1 . Parts Attached 312 | 7 2 5 10 3 2 2 3 13 22 29 35 3 12 40 14 3 2 15 13 23 27 27 Power 15 | 1 . . . . . 1 . 1 2 2 1 . . 1 2 . . . 1 . 1 2 Engine 6 | 1 . . . . . . . 1 2 2 . . . . . . . . . . . . Core 3 | . . . . . . 1 . . . . 1 . . 1 . . . . . . . . Reactor 6 | . . . . . . . . . . . . . . . 2 . . . 1 . 1 2 Propulsion 56 | 2 . . . . . . 2 3 6 7 11 . 2 12 2 1 . 4 . . 3 1 Treads 51 | 2 . . . . . . 2 . 4 7 11 . 2 12 2 1 . 4 . . 3 1 Leg 5 | . . . . . . . . 3 2 . . . . . . . . . . . . . Wheel . | . . . . . . . . . . . . . . . . . . . . . . . Hover . | . . . . . . . . . . . . . . . . . . . . . . . Flight . | . . . . . . . . . . . . . . . . . . . . . . . Utility 55 | 2 . . 3 . 2 1 . 2 1 8 2 1 2 6 2 1 . 4 5 4 5 4 Device 18 | . . . 1 . . 1 . 2 1 3 1 . 1 3 . 1 . . 1 . 1 2 Storage 8 | 2 . . 2 . 2 . . . . . . . . 1 . . . . . . 1 . Processor 9 | . . . . . . . . . . . . 1 1 1 . . . 3 2 . 1 . Hackware 2 | . . . . . . . . . . . . . . . . . . . . 1 . 1 Protection 18 | . . . . . . . . . . 5 1 . . 1 2 . . 1 2 3 2 1 Artifact . | . . . . . . . . . . . . . . . . . . . . . . . Weapon 186 | 2 2 5 7 3 . . 1 7 13 12 21 2 8 21 8 1 2 7 7 19 18 20 Energy Gun 35 | . . . 4 1 . . . 5 6 7 6 1 . 4 1 . . . . . . . Energy Cannon 1 | . . . 1 . . . . . . . . . . . . . . . . . . . Ballistic Gun 113 | 2 1 3 2 1 . . 1 1 5 4 11 1 7 13 5 1 1 6 5 12 16 15 Ballistic Cannon . | . . . . . . . . . . . . . . . . . . . . . . . Launcher 18 | . 1 2 . 1 . . . 1 2 1 3 . . 2 2 . . . . 1 . 2 Special Weapon 3 | . . . . . . . . . . . . . . . . . . . . 1 1 1 Impact Weapon . | . . . . . . . . . . . . . . . . . . . . . . . Slashing Weapon 11 | . . . . . . . . . . . 1 . 1 2 . . 1 1 2 3 . . Piercing Weapon 5 | . . . . . . . . . . . . . . . . . . . . 2 1 2 Special Melee Weapon . | . . . . . . . . . . . . . . . . . . . . . . . Unidentified Prototypes 22 | . . . 3 . . . . . 1 1 6 . 1 1 3 . . 1 1 3 . 1 Parts Lost 28 | . . . . . . . 1 7 7 1 1 . . 1 . . . 1 . 1 3 5 Power 2 | . . . . . . . . . . . . . . . . . . . . . . 2 Propulsion 5 | . . . . . . . . 2 1 . . . . 1 . . . . . . 1 . Utility 3 | . . . . . . . . . 1 1 . . . . . . . . . . 1 . Weapon 18 | . . . . . . . 1 5 5 . 1 . . . . . . 1 . 1 1 3 Highest Loss Streak 5 | . . . . . . . 1 5 5 1 1 . . 1 . . . 1 . 1 2 3 Average Slot Usage (%) 92 | . 100 98 99 100 100 100 97 91 87 98 98 96 100 99 89 88 88 81 85 84 85 84 Engine 3 | . 14 14 11 11 11 10 . 7 9 6 4 . . . . . . . . . . . Core 1 | . . . . . . . 9 1 . . 2 6 5 5 . . . . . . . . Reactor 1 | . . . . . . . . . . . . . . . 4 5 5 5 4 4 4 3 Treads 20 | . 28 28 22 22 22 22 25 9 10 29 30 26 29 28 18 17 17 13 14 14 12 13 Leg 1 | . . . . . . . . 16 15 . . . . . . . . . . . . . Device 6 | . . . 10 11 11 11 9 9 9 6 7 6 5 5 5 5 5 5 8 4 7 4 Storage 13 | . 28 28 22 22 22 22 18 18 18 15 15 13 11 11 11 11 11 10 9 9 8 8 Processor 7 | . . . . . . . . . . . . 6 11 11 11 11 11 14 14 14 13 17 Protection 3 | . . . . . . . . . . 7 7 6 5 5 5 5 5 5 4 3 7 3 Energy Gun 4 | . . . 21 11 11 11 9 17 14 7 3 6 1 . 1 . . . . . . . Ballistic Gun 23 | . 27 17 11 21 22 22 27 11 10 22 24 22 26 27 24 28 28 25 27 26 29 27 Naked Turns . | . . . . . . . . . . . . . . . . . . . . . . . Heaviest Build 144 | 17 17 18 45 44 76 76 77 84 87 108 113 98 106 106 132 132 131 118 132 127 144 138 Greatest Support 240 | 40 40 40 40 40 40 40 60 60 60 91 96 96 116 134 188 188 188 240 240 240 240 235 Greatest Overweight (x) 4 | 1 . . 1 1 1 1 1 4 4 2 1 1 . 2 . . . . . . . . Average Overweight (x) . | . . . . 1 1 1 1 1 1 . . . . . . . . . . . . . Largest Inventory Capacity 20 | 8 8 8 16 16 20 20 20 20 20 20 20 20 20 20 20 20 20 20 20 20 20 20 Average Capacity 19 | 6 8 8 13 16 18 20 20 20 20 20 20 20 20 20 20 20 20 20 20 20 20 20 Most Carried 20 | 4 7 8 13 14 16 17 20 20 20 20 20 19 20 20 20 20 20 20 20 20 20 20 Average Carried 18 | 2 6 7 9 13 13 15 18 18 17 19 19 18 19 19 19 19 19 19 19 19 19 19 Final Capacity 20 | 8 8 8 16 16 20 20 20 20 20 20 20 20 20 20 20 20 20 20 20 20 20 20 Final Carried 20 | 4 7 8 13 14 14 17 19 18 20 20 20 19 20 20 20 20 20 20 20 20 20 20 Class Distribution -------------------- 30% | Scavenger-Gunner 22% | Scavenger-Executioner 11% | Hauler-Gunner 11% | Scavenger-Tank 8% | Scavenger-Mutant 5% | Gunner 3% | Hauler-Tank Dominant Class ---------------- Mutant | -10/Materials Mutant | -10/Mines Gunner | -9/Materials Gunner | -9/Mines Hauler-Gunner | -9/Exiles Hauler-Gunner | -8/Mines Scavenger-Gunner | -8/Materials Scavenger-Gunner | -8/Garrison Scavenger-Mutant | -8/Materials Scavenger-Tank | -7/Factory Scavenger-Tank | -7/Storage Commander-Gunner | -6/Factory Scavenger-Gunner | -5/Factory Scavenger-Gunner | -5/Extension Scavenger-Gunner | -5/Cetus Scavenger-Gunner | -5/Archives Scavenger-Gunner | -5/Hub_04(d) Scavenger-Gunner | -4/Factory Scavenger-Executioner | -3/Research Scavenger-Executioner | -3/Testing Scavenger-Executioner | -2/Research Scavenger-Executioner | -2/Quarantine Resources | -11 -10 -10 -9 -9 -9 -8 -8 -8 -8 -7 -7 -6 -5 -5 -5 -5 -5 -4 -3 -3 -2 -2 ----------- Run | Scr Mat Min Mat Min Exi Min Mat Gar Mat Fac Sto Fac Fac Ext Cet Arc Hub Fac Res Tes Res Qua Matter Collected 14075 | 255 . 19 252 . 226 38 107 197 252 773 1332 69 185 1264 240 100 107 722 1008 2115 2262 2552 Remotely . | . . . . . . . . . . . . . . . . . . . . . . . Salvage Created 17135 | 64 66 49 272 19 . 164 328 556 1234 848 2703 26 198 1970 267 . 129 742 938 1800 1815 2947 Parts 814 | 3 7 14 18 2 . 6 19 21 51 31 129 4 7 98 13 . 3 39 61 82 88 118 Haulers Intercepted 13 | . . . 1 . . . . . 3 1 4 . . 1 . . . . . 1 1 1 Recyclers Shooed 15 | . 1 . 1 . . . . . 2 1 2 . 2 4 . . . . 1 . . 1 Parts Field Recycled . | . . . . . . . . . . . . . . . . . . . . . . . Retrieved Matter . | . . . . . . . . . . . . . . . . . . . . . . . Parts Self-Destructed . | . . . . . . . . . . . . . . . . . . . . . . . Prevented . | . . . . . . . . . . . . . . . . . . . . . . . Kills | -11 -10 -10 -9 -9 -9 -8 -8 -8 -8 -7 -7 -6 -5 -5 -5 -5 -5 -4 -3 -3 -2 -2 ------- Run | Scr Mat Min Mat Min Exi Min Mat Gar Mat Fac Sto Fac Fac Ext Cet Arc Hub Fac Res Tes Res Qua Combat Hostiles Destroyed 218 | . 2 9 4 2 . 3 6 11 15 8 39 . 2 24 3 . 1 10 11 23 18 27 Melee 1 | . . . . . . . . . . . 1 . . . . . . . . . . . Guns 171 | . 1 . 3 . . 3 6 8 12 8 27 . 2 18 2 . 1 10 11 19 18 22 AOE 35 | . 1 9 . 2 . . . 3 2 . 8 . . 4 1 . . . . 4 . 1 Classes Destroyed 21 | 1 1 1 3 . . . 1 2 2 1 1 . . 2 . . . . 1 5 . . Worker 15 | . . . . . . . . . 1 . 4 . 1 . . . 1 1 2 . 2 3 Builder 16 | . . . . . . . . . 2 . 2 . 1 2 . . 1 1 1 2 1 3 Tunneler 1 | . . . . . . . . . . . . . . . . . . . 1 . . . Hauler 13 | . . . 1 . . . . . 3 1 4 . . 1 . . . . . 1 1 1 Recycler 25 | 1 . . . . . . 1 . 3 5 6 . 1 2 . . . . . 2 2 2 Mechanic 1 | . . . . . . . . . . . . . . . . . . . . 1 . . Operator 4 | . . . 1 . . . . . . . . 1 . . . . . . 1 . . 1 Watcher 6 | . . . 1 . . . 1 . . . . . . 1 2 . . . 1 . . . Swarmer 32 | . . 9 . 2 . . 2 . 2 . 7 . . 5 . . . . . 5 . . Saboteur 1 | . . . . . . . . . . . . . . . . . . . . 1 . . Grunt 85 | . 2 . 4 . . 3 2 9 8 4 19 . 1 4 2 . . 3 2 8 . 14 Brawler 3 | . . . . . . . . 1 . . 2 . . . . . . . . . . . Duelist 4 | . . . . . . . . 1 . 1 1 . . . . . . . . 1 . . Protector 3 | . . . . . . . . . . . 2 . . . . . . . . . . 1 Researcher 5 | . . . . . . . . . . . . . . . . . . . . 2 . 3 Sentry 32 | . . . . . . . 2 . 5 1 7 . . 6 . . 1 1 1 2 6 . Hunter 30 | . . . . . . . . . . . . . . 6 . . . 4 5 2 4 9 Programmer 22 | . . . . . . . . . . 2 1 . 1 1 . . . 2 3 1 8 3 Behemoth 2 | . . . . . . . . . . . . . . 2 . . . . . . . . Cetus Guard 1 | . . . . . . . . . . . . . . . 1 . . . . . . . Investigator 1 | . . . . . . . . . . . . . . . . . . . . 1 . . Striker 2 | . . . . . . . . . . . . . . . . . . . . 2 . . Alpha 7 1 | . . . . . . . . . . . . . . . . . . . . 1 . . Thug 1 | . . . . . . . . . . . . . . 1 . . . . . . . . Butcher 1 | . . . . . . . . . . . . . . 1 . . . . . . . . Guerrilla 1 | . . . . . . . . . . . . . . 1 . . . . . . . . Best Kill Streak 12 | 1 2 9 2 2 . 3 6 5 6 4 11 1 4 5 2 . 2 4 12 11 8 8 Combat Bots Only 10 | . 2 9 2 2 . 3 5 5 2 3 8 . 2 5 2 . 1 3 7 10 4 6 Max Kills in Single Turn 6 | 1 1 3 1 2 . 1 1 2 2 2 6 1 2 3 1 . 2 1 3 3 2 2 Gunslinging 2 | . . . . . . . . 1 . 1 . . . 2 . . . . . 1 1 1 Exploded 5 | . 1 3 . 2 . . . 1 2 . 5 . . 1 1 . . . . 2 . 1 Melee 1 | . . . . . . . . . . . 1 . . . . . . . . . . . Uniques/NPCs Destroyed . | . . . . . . . . . . . . . . . . . . . . . . . Combat | -11 -10 -10 -9 -9 -9 -8 -8 -8 -8 -7 -7 -6 -5 -5 -5 -5 -5 -4 -3 -3 -2 -2 -------- Run | Scr Mat Min Mat Min Exi Min Mat Gar Mat Fac Sto Fac Fac Ext Cet Arc Hub Fac Res Tes Res Qua Damage Taken 17931 | . 85 222 121 27 . 132 277 616 938 358 1608 84 57 1885 355 66 1001 1242 859 2786 1765 3447 Core 1159 | . 15 54 27 8 . . 15 55 102 22 107 17 . 193 11 . 18 88 25 104 87 211 Absorbed by Shields 174 | . . . . . . . . . . . . . . 44 130 . . . . . . . Reduced by Siege Mode 45 | . . . . . . . . . . . . . . . . . . 37 . 8 . . Core Remaining (%) 85 | 100 . 72 . . . 91 . . 68 . 81 98 . . . . 77 92 . 90 . . Volleys Fired 539 | 1 7 8 16 2 . 7 14 23 63 32 82 1 4 59 18 3 6 24 23 47 40 59 Largest 7 | 2 2 2 3 1 . 3 4 4 4 4 4 5 5 5 5 5 5 5 6 6 7 7 Hottest 235 | 40 40 40 132 33 . 96 116 189 202 176 166 157 150 204 164 167 167 167 204 223 235 234 Shots Fired 2204 | 2 13 10 48 2 . 21 55 80 165 112 289 5 20 225 34 15 26 117 128 230 260 347 Gun 2153 | 2 12 4 48 . . 21 55 78 161 111 282 5 20 216 26 15 26 117 128 227 258 341 Cannon . | . . . . . . . . . . . . . . . . . . . . . . . Launcher 47 | . 1 6 . 2 . . . 2 4 1 7 . . 9 8 . . . . 2 . 5 Special 4 | . . . . . . . . . . . . . . . . . . . . 1 2 1 Kinetic 1850 | 2 12 4 16 . . 14 42 35 48 88 232 4 20 201 20 15 26 117 128 227 258 341 Thermal 274 | . . . 32 . . 7 13 42 110 23 47 . . . . . . . . . . . Explosive 13 | . 1 6 . 2 . . . . 1 1 . . . . . . . . . 2 . . Electromagnetic 63 | . . . . . . . . 3 6 . 10 1 . 24 14 . . . . . . 5 Robot Hit Streak 39 | 2 4 6 20 3 . 8 12 15 29 12 34 4 5 28 7 16 11 19 22 20 15 39 Robot Miss Streak 7 | . 2 1 3 . . 1 2 4 5 7 5 4 5 4 3 . 1 1 4 6 3 2 Penetration Max 2 | . . . . . . . . . . . . . . 1 1 . . 1 1 2 1 1 Secondary Targets 46 | . . . . . . 2 2 2 1 2 3 . . 5 . . . 2 1 8 5 13 Max Gunslinging Chain 2 | . . . . . . 1 1 1 1 1 1 . . 2 . . . 1 1 1 1 2 Shots Hit Robots 1479 | 2 8 5 31 2 . 17 38 56 99 74 215 3 6 166 14 15 16 81 78 159 145 249 Core Hits 707 | 1 4 10 9 2 . 11 15 29 41 28 122 3 5 74 18 5 12 27 39 96 54 102 Critical Hits 185 | . . . . . . . 1 2 . . 2 . 2 16 4 3 1 14 15 67 25 33 Critical Kills 67 | . . . . . . . . . . . 2 . . 8 1 . . 6 9 18 11 12 Critical Parts Destroyed 83 | . . . . . . . 1 2 . . . . 2 6 3 1 1 5 5 30 9 18 Melee Attacks 41 | . . . . . . . . . . . 1 . 6 6 . . 2 1 2 17 2 4 Impact . | . . . . . . . . . . . . . . . . . . . . . . . Slashing 26 | . . . . . . . . . . . 1 . 6 6 . . 2 1 2 8 . . Piercing 15 | . . . . . . . . . . . . . . . . . . . . 9 2 4 Sneak Attacks 5 | . . . . . . . . . . . . . . 5 . . . . . . . . Combat Hostiles . | . . . . . . . . . . . . . . . . . . . . . . . Follow-up Attacks . | . . . . . . . . . . . . . . . . . . . . . . . Damage Inflicted 35856 | 29 168 393 506 216 . 235 390 972 1797 1250 5088 40 375 4742 1078 375 767 1906 2362 3935 3046 6186 Guns 28988 | 26 97 36 493 . . 227 374 710 1511 1227 3611 40 343 3583 383 375 179 1906 2355 3185 3046 5281 Cannons . | . . . . . . . . . . . . . . . . . . . . . . . Explosions 5941 | . 71 357 . 216 . . . 262 265 . 1425 . . 534 695 . 470 . . 741 . 905 Melee 567 | . . . . . . . . . . . . . . 567 . . . . . . . . Ramming 360 | 3 . . 13 . . 8 16 . 21 23 52 . 32 58 . . 118 . 7 9 . . Kinetic 25760 | 26 97 36 70 . . 126 252 232 426 900 3243 40 343 3350 292 375 179 1906 2355 3185 3046 5281 Thermal 3654 | . . . 423 . . 101 122 504 1074 327 666 . . 44 254 . . . . . . 139 Explosive 1425 | . 71 357 . 216 . . . . 40 . . . . . . . . . . 741 . . Electromagnetic 4090 | . . . . . . . . 236 236 . 1127 . . 723 532 . 470 . . . . 766 Impact . | . . . . . . . . . . . . . . . . . . . . . . . Slashing 567 | . . . . . . . . . . . . . . 567 . . . . . . . . Piercing . | . . . . . . . . . . . . . . . . . . . . . . . Highest Corruption 11 | . . . . . . . . . . 1 4 . 1 1 1 1 7 . . 1 6 11 Average Corruption 2 | . . . . . . . . . . 1 2 . 1 1 1 1 1 . . 1 3 7 Corruption Purged . | . . . . . . . . . . . . . . . . . . . . . . . Effects 101 | . . . . . . . . . . 3 18 . 2 8 2 . . . . 1 17 50 Message Errors 16 | . . . . . . . . . . . 6 . 2 1 1 . . . . . 1 5 Matter Fused 7 | . . . . . . . . . . . 2 . . . . . . . . . 1 4 Heat Flow Errors 5 | . . . . . . . . . . . 1 . . . . . . . . . 3 1 Energy Discharges 11 | . . . . . . . . . . . 1 . . 3 . . . . . . 3 4 Parts Rejected 1 | . . . . . . . . . . . . . . . . . . . . . . 1 Data Loss (minor) 9 | . . . . . . . . . . . 3 . . 3 1 . . . . . . 2 Data Loss (major) 2 | . . . . . . . . . . . . . . . . . . . . . 1 1 Misfires 2 | . . . . . . . . . . . . . . . . . . . . . . 2 Targeting Errors 39 | . . . . . . . . . . 2 4 . . . . . . . . 1 6 26 Weapon Failures 9 | . . . . . . . . . . 1 1 . . 1 . . . . . . 2 4 Overload Shots . | . . . . . . . . . . . . . . . . . . . . . . . Overflow Damage 249 | . . . . 12 . . . 12 . 8 34 . . 48 . . 23 . . 72 . 40 Projectiles . | . . . . . . . . . . . . . . . . . . . . . . . Explosions 214 | . . . . 12 . . . 12 . . 34 . . 21 . . 23 . . 72 . 40 Melee 35 | . . . . . . . . . . 8 . . . 27 . . . . . . . . Knockbacks 3 | . . . 1 . . . . . . . 1 . 1 . . . . . . . . . Impact 3 | . . . 1 . . . . . . . 1 . 1 . . . . . . . . . Kinetic . | . . . . . . . . . . . . . . . . . . . . . . . Secondary . | . . . . . . . . . . . . . . . . . . . . . . . Self-Inflicted Damage 278 | . . 26 . . . . . 36 6 . 52 . . . . . 90 . . 68 . . Shots 8 | . . 2 . . . . . 1 . . 3 . . . . . 1 . . 1 . . Rammed 33 | 1 . . 2 . . 1 1 . 4 1 6 . 2 3 . . 10 . 1 1 . . Targets Rammed 39 | 1 . . 2 . . 1 2 . 5 1 8 . 3 4 . . 10 . 1 1 . . Kicked 1 | . . . . . . . . . 1 . . . . . . . . . . . . . Crushed 5 | . . . . . . . 1 . . . 2 . 1 1 . . . . . . . . Highest Temperature 323 | . 2 9 129 . . 4 45 186 313 323 145 18 . 91 60 33 42 93 30 52 307 54 Average Temperature 54 | . 1 9 41 . . 4 23 56 98 76 35 12 . 18 27 22 22 17 11 17 81 33 Received Heat Transfer 2687 | . 51 54 69 . . 72 81 324 432 105 498 . . 143 39 . 54 156 . 285 63 261 Effects 1 | . . . . . . . . . 1 . . . . . . . . . . . . . Interference 1 | . . . . . . . . . 1 . . . . . . . . . . . . . Siege Activations 3 | . . . . . . . . . . . . . . . . . . 1 . 1 1 . Total Turns 51 | . . . . . . . . . . . . . . . . . . 31 . 12 8 . Longest Duration 31 | . . . . . . . . . . . . . . . . . . 31 . 12 8 . Robots Corrupted 9 | . . . . . . . . . . . 3 . . 2 . . . . . . . 4 Combat Hostiles 9 | . . . . . . . . . . . 3 . . 2 . . . . . . . 4 Parts Fried 21 | . . . . . . . . . . . 8 . . 6 1 . 2 . . . . 4 Impact Corruptions 1 | . . . . . . . . . . 1 . . . . . . . . . . . . Robots Melted 2 | . . . 1 . . . . . 1 . . . . . . . . . . . . . Combat Hostiles 2 | . . . 1 . . . . . 1 . . . . . . . . . . . . . Parts Melted 3 | . . . . . . . . 1 2 . . . . . . . . . . . . . Heat Transferred 6939 | . . . 888 . . 222 259 1035 2553 666 966 . . 100 150 . . . . . . 100 Parts Sabotaged . | . . . . . . . . . . . . . . . . . . . . . . . Parts Stolen . | . . . . . . . . . . . . . . . . . . . . . . . Parts Stripped . | . . . . . . . . . . . . . . . . . . . . . . . Power Chain Reactions 13 | . . . . . . . . 1 1 . 3 . . 4 1 . . . . 2 . 1 Missiles Intercepted . | . . . . . . . . . . . . . . . . . . . . . . . Alert | -11 -10 -10 -9 -9 -9 -8 -8 -8 -8 -7 -7 -6 -5 -5 -5 -5 -5 -4 -3 -3 -2 -2 ------- Run | Scr Mat Min Mat Min Exi Min Mat Gar Mat Fac Sto Fac Fac Ext Cet Arc Hub Fac Res Tes Res Qua Peak Influence 904 | 5 58 247 277 80 . 70 224 451 365 274 854 546 279 463 777 386 711 587 348 658 464 904 Average Influence 274 | 1 26 229 192 79 . 8 123 354 187 160 418 413 188 200 449 358 275 403 264 339 313 464 Maximum Alert Level 3 | . . 1 1 . . . 1 2 1 1 3 2 1 2 3 1 3 2 1 2 2 3 Low Security (%) 36 | 100 100 17 51 100 . 100 73 10 50 67 11 . 62 56 7 5 46 . 30 29 13 . Level 1 44 | . . 82 48 . . . 26 48 49 32 42 32 37 36 30 94 42 72 69 31 69 43 Level 2 16 | . . . . . . . . 40 . . 29 67 . 6 51 . 9 27 . 38 17 34 Level 3 2 | . . . . . . . . . . . 16 . . . 10 . 1 . . . . 22 Level 4 . | . . . . . . . . . . . . . . . . . . . . . . . Level 5 . | . . . . . . . . . . . . . . . . . . . . . . . High Security . | . . . . . . . . . . . . . . . . . . . . . . . Max Security . | . . . . . . . . . . . . . . . . . . . . . . . Squads Dispatched 55 | . 2 . 1 . . . 2 . . 2 5 . 2 2 2 . 2 3 8 6 8 10 Investigation 10 | . 1 . . . . . . . . . . . 1 . 2 . . . 3 . 2 1 Extermination 8 | . . . . . . . . . . 1 1 . 1 . . . . 1 . 1 2 1 Reinforcement 28 | . 1 . 1 . . . 1 . . 1 2 . . 2 . . 2 2 5 3 1 7 Assault 4 | . . . . . . . . . . . 2 . . . . . . . . 1 . 1 Garrison 5 | . . . . . . . 1 . . . . . . . . . . . . 1 3 . Intercept . | . . . . . . . . . . . . . . . . . . . . . . . Construction Impeded 6 | . . . . . . . . . . 1 1 . . 2 . . . . 1 . . 1 Haulers Reinforced 5 | . . . . . . . . . . . 1 . . . . . . . 2 . . 2 Stealth | -11 -10 -10 -9 -9 -9 -8 -8 -8 -8 -7 -7 -6 -5 -5 -5 -5 -5 -4 -3 -3 -2 -2 --------- Run | Scr Mat Min Mat Min Exi Min Mat Gar Mat Fac Sto Fac Fac Ext Cet Arc Hub Fac Res Tes Res Qua Distress Signals 23 | . . . 2 . . 1 1 . 2 2 3 . . 1 2 . . . 7 1 . 1 Communications Jammed . | . . . . . . . . . . . . . . . . . . . . . . . Distress Signals . | . . . . . . . . . . . . . . . . . . . . . . . Times Spotted 356 | . 2 11 9 3 . 3 11 14 21 16 51 9 4 34 14 3 24 14 22 36 19 36 Peak Tracking Total 16 | . 2 6 4 3 . 3 5 5 3 4 9 4 1 4 5 2 16 5 5 12 4 7 Tactical Retreats 17 | . . . 1 2 . . 1 4 1 . 1 . . . . . . . . 6 1 . Traps | -11 -10 -10 -9 -9 -9 -8 -8 -8 -8 -7 -7 -6 -5 -5 -5 -5 -5 -4 -3 -3 -2 -2 ------- Run | Scr Mat Min Mat Min Exi Min Mat Gar Mat Fac Sto Fac Fac Ext Cet Arc Hub Fac Res Tes Res Qua Traps Triggered 14 | . . . . . . . . 2 . 2 1 2 1 . . . . . . 1 . 5 Indirectly 4 | . . . . . . . . . . . . . . . . . . . . . . 4 Trap Hack Attempts . | . . . . . . . . . . . . . . . . . . . . . . . Triggered . | . . . . . . . . . . . . . . . . . . . . . . . Disarmed . | . . . . . . . . . . . . . . . . . . . . . . . Reprogrammed . | . . . . . . . . . . . . . . . . . . . . . . . Reused . | . . . . . . . . . . . . . . . . . . . . . . . Traps Extracted . | . . . . . . . . . . . . . . . . . . . . . . . Installed . | . . . . . . . . . . . . . . . . . . . . . . . Triggered 2 | . . . . . . . . . . . 1 . . . . . . . . . . 1 Machines | -11 -10 -10 -9 -9 -9 -8 -8 -8 -8 -7 -7 -6 -5 -5 -5 -5 -5 -4 -3 -3 -2 -2 ---------- Run | Scr Mat Min Mat Min Exi Min Mat Gar Mat Fac Sto Fac Fac Ext Cet Arc Hub Fac Res Tes Res Qua Machines Disabled 37 | . . . 1 . . . . . 2 1 4 . . 5 . . 9 1 1 5 1 7 Max in Single Turn 8 | . . . 1 . . . . . 1 1 1 . . 1 . . 8 1 1 1 1 4 Garrison Access 5 | . . . . . . . . . 1 . . . 1 . . . 1 1 . 1 . . Network Hub 1 | . . . . . . . . . . . . . . . . . 1 . . . . . Machines Sabotaged . | . . . . . . . . . . . . . . . . . . . . . . . Garrisons Compromised . | . . . . . . . . . . . . . . . . . . . . . . . Overloaded Fab Kills . | . . . . . . . . . . . . . . . . . . . . . . . Fab Network Shutdowns . | . . . . . . . . . . . . . . . . . . . . . . . Hacking | -11 -10 -10 -9 -9 -9 -8 -8 -8 -8 -7 -7 -6 -5 -5 -5 -5 -5 -4 -3 -3 -2 -2 --------- Run | Scr Mat Min Mat Min Exi Min Mat Gar Mat Fac Sto Fac Fac Ext Cet Arc Hub Fac Res Tes Res Qua Machines Accessed 52 | . 2 . 2 1 1 1 1 . 5 4 5 1 6 8 2 . 1 2 3 2 4 1 Terminals 28 | . 2 . 2 . . 1 . . 3 2 3 1 2 8 2 . . . . 1 1 . Fabricators 3 | . . . . . . . . . . 1 . . 1 . . . . . 1 . . . Repair Stations 8 | . . . . . . . . . 1 1 2 . . . . . . 1 . . 2 1 Recycling Units . | . . . . . . . . . . . . . . . . . . . . . . . Scanalyzers 3 | . . . . . . . . . . . . . 2 . . . . . 1 . . . Garrison Access 8 | . . . . . . . 1 . 1 . . . 1 . . . 1 1 1 1 1 . Total Hacks 138 | . 6 . 12 1 1 1 2 . 14 6 12 2 14 20 5 . 1 8 12 2 12 7 Successful 82 | . 1 . 7 1 1 1 1 . 10 4 9 2 8 11 1 . 1 7 7 2 6 2 Failed 56 | . 5 . 5 . . . 1 . 4 2 3 . 6 9 4 . . 1 5 . 6 5 Catastrophic 12 | . 2 . 1 . . . . . 1 1 . . 1 . 2 . . 1 1 . . 2 Database Lockouts . | . . . . . . . . . . . . . . . . . . . . . . . Manual 48 | . 4 . 11 . . 1 . . 8 1 6 1 1 8 3 . . . 1 . 3 . Terminals 73 | . 6 . 12 . . 1 . . 8 2 8 2 6 20 5 . . . . 1 2 . Fabricators 8 | . . . . . . . . . . 2 . . 1 . . . . . 5 . . . Repair Stations 32 | . . . . . . . . . 4 2 4 . . . . . . 7 . . 8 7 Recycling Units . | . . . . . . . . . . . . . . . . . . . . . . . Scanalyzers 10 | . . . . . . . . . . . . . 5 . . . . . 5 . . . Garrison Access 13 | . . . . . . . 2 . 2 . . . 2 . . . 1 1 2 1 2 . Terminal Hacks 31 | . . . 5 1 1 1 . . 2 1 3 2 3 9 1 . . . . 1 1 . Record 1 | . . . . . 1 . . . . . . . . . . . . . . . . . Part Schematic 1 | . . . . . . . . . . . . . 1 . . . . . . . . . Robot Analysis 5 | . . . 3 . . . . . 2 . . . . . . . . . . . . . Prototype ID Bank 1 | . . . . . . . . . . . . 1 . . . . . . . . . . Open Door 10 | . . . . 1 . . . . . . . . 1 7 1 . . . . . . . Branch Access Points 3 | . . . . . . . . . . . . 1 1 . . . . . . . 1 . Unreport Threat 2 | . . . . . . . . . . . 1 . . 1 . . . . . . . . Locate Traps 2 | . . . . . . . . . . 1 1 . . . . . . . . . . . Recall Reinforcements 1 | . . . 1 . . . . . . . . . . . . . . . . . . . Hauler Manifests 1 | . . . . . . . . . . . . . . 1 . . . . . . . . Zone Layout 3 | . . . 1 . . 1 . . . . 1 . . . . . . . . . . . Protovariant Controls 1 | . . . . . . . . . . . . . . . . . . . . 1 . . Fabricator Hacks 2 | . . . . . . . . . . 1 . . . . . . . . 1 . . . Load Schematic 1 | . . . . . . . . . . . . . . . . . . . 1 . . . Build 1 | . . . . . . . . . . 1 . . . . . . . . . . . . Repair Station Hacks 20 | . . . . . . . . . 3 2 4 . . . . . . 6 . . 3 2 Scan Component 11 | . . . . . . . . . 2 1 2 . . . . . . 3 . . 2 1 Repair 9 | . . . . . . . . . 1 1 2 . . . . . . 3 . . 1 1 Recycling Unit Hacks . | . . . . . . . . . . . . . . . . . . . . . . . Scanalyzer 6 | . . . . . . . . . . . . . 2 . . . . . 4 . . . Insert Component 3 | . . . . . . . . . . . . . 1 . . . . . 2 . . . Analyze 3 | . . . . . . . . . . . . . 1 . . . . . 2 . . . Garrison Access Hacks 10 | . . . . . . . 1 . 2 . . . 2 . . . 1 1 1 1 1 . Unlock Access 1 | . . . . . . . 1 . . . . . . . . . . . . . . . Seal Access 5 | . . . . . . . . . 1 . . . 1 . . . 1 1 . 1 . . Coupler Status 4 | . . . . . . . . . 1 . . . 1 . . . . . 1 . 1 . Unauthorized Hacks 32 | . 2 . 4 . . . . . 6 1 5 . 2 8 . . . . 2 . 2 . Terminals 11 | . 1 . 2 . . . . . 3 . 2 . 1 2 . . . . . . . . Botnet 11 | . 1 . 2 . . . . . 3 . 2 . 1 2 . . . . . . . . Fabricators . | . . . . . . . . . . . . . . . . . . . . . . . Repair Stations . | . . . . . . . . . . . . . . . . . . . . . . . Recycling Units . | . . . . . . . . . . . . . . . . . . . . . . . Scanalyzers . | . . . . . . . . . . . . . . . . . . . . . . . Garrison Access 2 | . . . . . . . . . . . . . . . . . . . 1 . 1 . Eject 2 | . . . . . . . . . . . . . . . . . . . 1 . 1 . Data Cores Recovered 1 | . . . . . . . . . . . . 1 . . . . . . . . . . Used . | . . . . . . . . . . . . . . . . . . . . . . . Hacking Detections 41 | . 2 . 2 . . 1 1 . 5 4 3 . 5 8 2 . . 1 2 1 3 1 Full Trace Events 5 | . 1 . . . . . . . . . . . 1 . 2 . . . . . 1 . Feedback Events . | . . . . . . . . . . . . . . . . . . . . . . . Feedback Blocked . | . . . . . . . . . . . . . . . . . . . . . . . Robot Schematics Acquired . | . . . . . . . . . . . . . . . . . . . . . . . Robots Built 2 | . . . . . . . . . . 2 . . . . . . . . . . . . Matter 252 | . . . . . . . . . . 252 . . . . . . . . . . . . Time 134 | . . . . . . . . . . 134 . . . . . . . . . . . . Total Robot Build Rating 8 | . . . . . . . . . . 8 . . . . . . . . . . . . Part Schematics Acquired 3 | . . . . . . . . . . . . . 2 . . . . . 1 . . . Parts Built . | . . . . . . . . . . . . . . . . . . . . . . . Matter . | . . . . . . . . . . . . . . . . . . . . . . . Time . | . . . . . . . . . . . . . . . . . . . . . . . Total Part Build Rating . | . . . . . . . . . . . . . . . . . . . . . . . Parts Repaired 9 | . . . . . . . . . 1 1 2 . . . . . . 3 . . 1 1 Time 579 | . . . . . . . . . 36 13 44 . . . . . . 324 . . 54 108 Parts Recycled . | . . . . . . . . . . . . . . . . . . . . . . . Recycled Matter . | . . . . . . . . . . . . . . . . . . . . . . . Retrieved Matter . | . . . . . . . . . . . . . . . . . . . . . . . Retrieved Components . | . . . . . . . . . . . . . . . . . . . . . . . Parts Scanalyzed 3 | . . . . . . . . . . . . . 1 . . . . . 2 . . . Part Schematics Acquired 2 | . . . . . . . . . . . . . 1 . . . . . 1 . . . Parts Damaged . | . . . . . . . . . . . . . . . . . . . . . . . Bothacking | -11 -10 -10 -9 -9 -9 -8 -8 -8 -8 -7 -7 -6 -5 -5 -5 -5 -5 -4 -3 -3 -2 -2 ------------ Run | Scr Mat Min Mat Min Exi Min Mat Gar Mat Fac Sto Fac Fac Ext Cet Arc Hub Fac Res Tes Res Qua Used RIF Installer 1 | . . . . . . . . 1 . . . . . . . . . . . . . . Robots Hacked 3 | . . . . . . . . . . . . . . . . . . . . 1 1 1 Non-combat 1 | . . . . . . . . . . . . . . . . . . . . . 1 . Combat 2 | . . . . . . . . . . . . . . . . . . . . 1 . 1 Robot Hacks Applied 4 | . . . . . . . . . . . . . . . . . . . . 1 2 1 purge_threat 1 | . . . . . . . . . . . . . . . . . . . . . 1 . locate_traps 1 | . . . . . . . . . . . . . . . . . . . . . 1 . locate_prototypes 2 | . . . . . . . . . . . . . . . . . . . . 1 . 1 Relay Couplers Released 12 | . . . . . . . . . . . . . . . . . . 1 7 . 4 . Ejected 7 | . . . . . . . . . . . . . . . . . . . 3 . 4 . Machine Destruction 1 | . . . . . . . . . . . . . . . . . . 1 . . . . Programmers 4 | . . . . . . . . . . . . . . . . . . . 4 . . . Attached 2 | . . . . . . . . . . . . . . . . . . . . 1 . 1 Robots Rewired 9 | . . . . . . . . . . . . . . 8 . . . 1 . . . . Allies Hacked . | . . . . . . . . . . . . . . . . . . . . . . . Hacks Repelled . | . . . . . . . . . . . . . . . . . . . . . . . Allies | -11 -10 -10 -9 -9 -9 -8 -8 -8 -8 -7 -7 -6 -5 -5 -5 -5 -5 -4 -3 -3 -2 -2 -------- Run | Scr Mat Min Mat Min Exi Min Mat Gar Mat Fac Sto Fac Fac Ext Cet Arc Hub Fac Res Tes Res Qua Total Allies 34 | . . . . . . . . . . 2 10 . . 16 5 . . 1 . . . . Largest Group 10 | . . . . . . . . . . 2 10 10 5 7 9 5 4 1 . . . . Highest-Rated Group 696 | . . . . . . . . . . 64 173 173 89 326 696 499 357 47 . . . . Highest-Rated Ally 156 | . . . . . . . . . . 32 29 29 25 156 156 142 94 47 . . . . Total Orders 5 | . . . . . . . . . . . . . . . 2 . 1 . 1 . 1 . GOTO 2 | . . . . . . . . . . . . . . . 1 . 1 . . . . . FOLLOW 1 | . . . . . . . . . . . . . . . 1 . . . . . . . EXPLORE 2 | . . . . . . . . . . . . . . . . . . . 1 . 1 . Ally Attacks 261 | . . . . . . . . . . 23 . 48 28 39 66 27 24 6 . . . . Total Damage 6722 | . . . . . . . . . . 668 . 603 326 674 2207 1066 946 232 . . . . Kills 49 | . . . . . . . . . . 7 . 8 3 7 14 4 5 1 . . . . Allies Corrupted 1 | . . . . . . . . . . . . . . . . . 1 . . . . . Allies Melted . | . . . . . . . . . . . . . . . . . . . . . . . Intel | -11 -10 -10 -9 -9 -9 -8 -8 -8 -8 -7 -7 -6 -5 -5 -5 -5 -5 -4 -3 -3 -2 -2 ------- Run | Scr Mat Min Mat Min Exi Min Mat Gar Mat Fac Sto Fac Fac Ext Cet Arc Hub Fac Res Tes Res Qua Robot Analysis Total 5 | . . . 3 . . . . . 2 . . . . . . . . . . . . . Derelict Logs Recovered . | . . . . . . . . . . . . . . . . . . . . . . . Drone Launches 10 | . . . . . . . . . . . . . . . . . . . 4 . 6 . Drone Recoveries . | . . . . . . . . . . . . . . . . . . . . . . . Exploration | -11 -10 -10 -9 -9 -9 -8 -8 -8 -8 -7 -7 -6 -5 -5 -5 -5 -5 -4 -3 -3 -2 -2 ------------- Run | Scr Mat Min Mat Min Exi Min Mat Gar Mat Fac Sto Fac Fac Ext Cet Arc Hub Fac Res Tes Res Qua Turns Passed 14719 | 106 215 123 433 185 528 389 197 539 1248 1257 1012 429 715 1626 495 424 253 828 831 1063 1080 743 Spaces Moved 6502 | 60 119 61 203 98 291 198 76 230 513 574 339 241 398 797 225 82 124 229 428 464 521 231 Core 9 | 9 . . . . . . . . . . . . . . . . . . . . . . Treads 6023 | 51 119 61 203 98 291 198 76 62 211 574 339 241 398 797 225 82 124 229 428 464 521 231 Legs 470 | . . . . . . . . 168 302 . . . . . . . . . . . . . Wheels . | . . . . . . . . . . . . . . . . . . . . . . . Hover . | . . . . . . . . . . . . . . . . . . . . . . . Flight . | . . . . . . . . . . . . . . . . . . . . . . . Fastest Speed 50 | 50 160 160 160 180 180 180 180 180 180 160 162 162 162 160 160 160 160 160 160 160 150 150 Average Speed 166 | 144 160 160 173 180 180 180 180 181 181 173 178 170 162 161 160 160 160 160 160 160 152 153 Slowest Speed 240 | 160 160 160 180 180 180 180 180 240 240 200 182 182 162 200 160 160 160 160 160 160 160 155 Overloaded Moves . | . . . . . . . . . . . . . . . . . . . . . . . Propulsion Burnouts . | . . . . . . . . . . . . . . . . . . . . . . . Robots Hopped . | . . . . . . . . . . . . . . . . . . . . . . . Cave-ins Triggered . | . . . . . . . . . . . . . . . . . . . . . . . Exploration Rate (%) 34 | 6 25 18 21 37 60 37 9 42 45 16 47 9 12 90 74 82 22 9 25 64 21 25 Regions Visited 22 Branch Regions 11 Pre-discovered Areas 1 | . . . . . 1 . . . . . . . . . . . . . . . . . Known Exits Taken 3 | . . . . . . . 1 . . . . . 1 . . . . . . . 1 . Unknown Exits Taken 18 | 1 1 1 1 1 1 1 . . 1 1 1 1 . 1 1 1 1 1 1 1 . . Scrap Searched 1 | . . . . . . 1 . . . . . . . . . . . . . . . . Spaces Dug 141 | . . 15 . . . . . . 6 13 . . 5 . . . . . 2 99 1 . Terrain Destroyed 481 | . 7 41 . 21 . . . . 6 13 14 . 8 23 16 2 164 20 3 120 8 15 Melee 23 | . . . . . . . . . . . . . 5 . . . . . 2 15 1 . Projectile 75 | . . . . . . . . . . . . . 3 23 1 2 5 20 1 10 7 3 AOE 383 | . 7 41 . 21 . . . . 6 13 14 . . . 15 . 159 . . 95 . 12 Actions | -11 -10 -10 -9 -9 -9 -8 -8 -8 -8 -7 -7 -6 -5 -5 -5 -5 -5 -4 -3 -3 -2 -2 --------- Run | Scr Mat Min Mat Min Exi Min Mat Gar Mat Fac Sto Fac Fac Ext Cet Arc Hub Fac Res Tes Res Qua Total 9097 | 74 130 75 251 103 296 215 105 309 712 786 567 257 451 991 344 368 154 628 502 634 690 455 Wait 1258 | . . . 5 . . 5 2 16 70 116 66 8 12 12 59 275 9 332 21 65 73 112 Move 6482 | 60 118 60 202 97 290 197 76 228 512 573 338 240 397 796 224 81 124 228 427 463 520 231 Hop . | . . . . . . . . . . . . . . . . . . . . . . . Pick Up 159 | 5 3 1 10 1 1 2 5 11 22 14 8 1 7 10 8 2 1 10 7 9 11 10 Fast Attach 69 | 7 . 1 1 . . 1 1 2 4 11 10 1 1 8 5 . . 4 1 2 4 5 Attach 60 | . . . 2 . . . 1 7 11 4 1 2 4 4 . . . 3 3 4 6 8 Detach 1 | . . . . . . . . . . . 1 . . . . . . . . . . . Swap 183 | . 2 4 7 3 2 1 1 4 7 14 24 . 7 28 9 3 2 8 9 17 17 14 Drop 207 | 1 . 1 6 . 3 1 3 8 18 21 28 . 10 29 21 4 1 12 6 8 14 12 Fire 539 | 1 7 8 16 2 . 7 14 23 63 32 82 1 4 59 18 3 6 24 23 47 40 59 Melee 41 | . . . . . . . . . . . 1 . 6 6 . . 2 1 2 17 2 4 Ram . | . . . . . . . . . . . . . . . . . . . . . . . Kick 3 | . . . . . . . . . 3 . . . . . . . . . . . . . Crush 34 | . . . 2 . . 1 2 . 2 1 8 . 3 4 . . 9 . 1 1 . . Escape Stasis 15 | . . . . . . . . 10 . . . 4 . . . . . . . 1 . . Rewire 41 | . . . . . . . . . . . . . . 35 . . . 6 . . . . Trap . | . . . . . . . . . . . . . . . . . . . . . . . Miscellaneous 5 | . . . . . . . . . . . . . . . . . . . 2 . 3 . Route ------- -11/Scrapyard -10/Materials -10/Mines -9/Materials -9/Mines (discovered 2 exits: *Mat / *Exi) -9/Exiles -8/Mines -8/Materials -8/Garrison (discovered 2 exits: *Mat x2) -8/Materials -7/Factory -7/Storage -6/Factory (discovered 3 exits: *Fac / Low x2) -5/Factory (discovered 4 exits: *Upp x2 / *Ext x2) -5/Extension (discovered 2 exits: *Fac / *Cet) -5/Cetus (discovered 2 exits: *Fac / [*Arc]) -5/Archives (discovered 3 exits: *Fac / *Hub x2) -5/Hub_04(d) -4/Factory -3/Research -3/Testing -2/Research (discovered 2 exits: *Qua x2) -2/Quarantine History --------- Turn | Location | Event 4 | -11/Scrapyard | Discovered new exit (range 16) 107 | -11/Scrapyard | Entered Materials 300 | -10/Materials | Build established: Mutant 306 | -10/Materials | Discovered new exit (range 6) 322 | -10/Materials | Entered Mines 324 | -10/Mines | Discovered new exit (range 15) 364 | -10/Mines | Destroyed 9 combat bots 445 | -10/Mines | Entered Materials 445 | -9/Materials | Evolved 2 slots: Utility x1, Weapon x1 731 | -9/Materials | Build established: Gunner 823 | -9/Materials | Discovered new exit (range 16) 878 | -9/Materials | Entered Mines 881 | -9/Mines | Met a Derelict bent on vengeance 928 | -9/Mines | Discovered new exit (range 7) 1009 | -9/Mines | Met a Derelict who couldn't figure out how to use a Trap Extractor 1055 | -9/Mines | Deemed a non-threat by the Exiles lab entrance 1055 | -9/Mines | Discovered new exit (range 5) 1063 | -9/Mines | Entered Exiles 1112 | -9/Exiles | Met 8R-AWN 1139 | -9/Exiles | Met EX-HEX 1231 | -9/Exiles | Met EX-DEC 1390 | -9/Exiles | Met EX-BIN 1523 | -9/Exiles | Learned location of Zion (-6) 1577 | -9/Exiles | Discovered new exit (range 10) 1590 | -9/Exiles | Build established: Hauler-Gunner 1591 | -9/Exiles | Entered Mines 1967 | -8/Mines | Discovered new exit (range 7) 1980 | -8/Mines | Entered Materials 1980 | -8/Materials | Evolved 2 slots: Propulsion x1, Weapon x1 2076 | -8/Materials | Garrison activated, responded to threat 2177 | -8/Materials | Identified exit to Garrison 2177 | -8/Materials | Entered Garrison 2278 | -8/Garrison | Triggered checkpoint 2394 | -8/Garrison | Lost 5 parts (2n3w) 2436 | -8/Garrison | Triggered checkpoint 2503 | -8/Garrison | Discovered new exit (range 14) 2680 | -8/Garrison | Discovered new exit (range 8) 2687 | -8/Garrison | Build established: Scavenger-Gunner 2707 | -8/Garrison | Installed Relay Interface Framework 2716 | -8/Garrison | Entered Materials 2864 | -8/Materials | Lost 5 parts (1n1u3w) 2915 | -8/Materials | Repaired Broken Aluminum Leg 3359 | -8/Materials | Build established: Scavenger-Mutant 3912 | -8/Materials | Build established: Scavenger-Gunner 3951 | -8/Materials | Discovered new exit (range 8) 3964 | -8/Materials | Entered Factory 3964 | -7/Factory | Evolved 2 slots: Propulsion x1, Utility x1 4082 | -7/Factory | Repaired Lgt. Treads 4282 | -7/Factory | Build established: Scavenger-Tank 4479 | -7/Factory | Fabricated Y-54 Guardian (x2) 5166 | -7/Factory | Discovered new exit (range 12) 5221 | -7/Factory | Entered Storage 6021 | -7/Storage | First assault squad dispatched 6060 | -7/Storage | Repaired Med. Reactive Plating 6100 | -7/Storage | Destroyed 8 combat bots 6162 | -7/Storage | Repaired Med. Treads 6190 | -7/Storage | Assisted by bots powering up and referring to "LRC-V3" 6198 | -7/Storage | Discovered new exit (range 16) 6233 | -7/Storage | Entered Factory 6233 | -6/Factory | Accompanied by 10 allies 6233 | -6/Factory | Evolved 2 slots: Utility x1, Weapon x1 6375 | -6/Factory | Identified exit to Lower Caves 6611 | -6/Factory | Discovered new exit (range 12) 6662 | -6/Factory | Entered another Factory area 6662 | -5/Factory | Accompanied by 5 allies 6662 | -5/Factory | Evolved 2 slots: Propulsion x1, Utility x1 6798 | -5/Factory | Build established: Scavenger-Gunner 6859 | -5/Factory | Identified exit to Upper Caves 6859 | -5/Factory | Identified exit to Extension 7055 | -5/Factory | Found Prototype Processor 7182 | -5/Factory | P-70 Sage assimilated allied Trooper 4g 7377 | -5/Factory | Entered Extension 7424 | -5/Extension | Rescued a captive Derelict 7474 | -5/Extension | Build established: Hauler-Gunner 7745 | -5/Extension | Rescued a captive Derelict 7789 | -5/Extension | Rescued a captive Derelict 8001 | -5/Extension | Disrupted transfer network 8261 | -5/Extension | Spotted B-75 Beast 8270 | -5/Extension | Destroyed B-75 Beast 8307 | -5/Extension | Spotted B-75 Beast 8319 | -5/Extension | Destroyed B-75 Beast 8619 | -5/Extension | Rescued a captive Derelict 8619 | -5/Extension | Rescued a captive Derelict 8724 | -5/Extension | Build established: Scavenger-Gunner 8786 | -5/Extension | Rescued A7 8856 | -5/Extension | Rescued a captive Derelict 8879 | -5/Extension | Rescued a captive Derelict 8962 | -5/Extension | Discovered new exit (range 10) 8964 | -5/Extension | Discovered new exit (range 6) 9003 | -5/Extension | Entered Cetus 9003 | -5/Cetus | Accompanied by 6 allies 9008 | -5/Cetus | Acquired a Cetus Manufacturing Module code from A7 9023 | -5/Cetus | Spotted Cetus Guard 9023 | -5/Cetus | Spotted Cetus Guard 9027 | -5/Cetus | Allies destroyed Cetus Guard 9027 | -5/Cetus | Spotted Cetus Guard 9028 | -5/Cetus | Spotted Cetus Guard 9038 | -5/Cetus | Allies destroyed Cetus Guard 9043 | -5/Cetus | Allies destroyed Cetus Guard 9049 | -5/Cetus | Allies destroyed Cetus Guard 9162 | -5/Cetus | Escorted A7 to Cetus Mainframe 9177 | -5/Cetus | Started Cetus Manufacturing Module 9202 | -5/Cetus | Manufactured an Enhanced Grunt 9227 | -5/Cetus | Manufactured an Enhanced Grunt 9252 | -5/Cetus | Manufactured an Enhanced Grunt 9263 | -5/Cetus | Discovered new exit (range 21) 9277 | -5/Cetus | Manufactured an Enhanced Grunt 9302 | -5/Cetus | Manufactured an Enhanced Grunt 9338 | -5/Cetus | Spotted Cetus Guard 9338 | -5/Cetus | Spotted Cetus Guard 9344 | -5/Cetus | Spotted Cetus Guard 9344 | -5/Cetus | Spotted Cetus Guard 9345 | -5/Cetus | Allies destroyed Cetus Guard 9350 | -5/Cetus | Destroyed Cetus Guard 9350 | -5/Cetus | Allies destroyed Cetus Guard 9353 | -5/Cetus | Allies destroyed Cetus Guard 9394 | -5/Cetus | Discovered new exit (range 21) 9411 | -5/Cetus | Met Revision 17 9498 | -5/Cetus | Entered Archives 9498 | -5/Archives | Accompanied by 5 allies 9503 | -5/Archives | Received a hacking code to weaken MAIN.C 9594 | -5/Archives | Discovered new exit (range 22) 9615 | -5/Archives | Discovered new exit (range 22) 9615 | -5/Archives | Discovered new exit (range 18) 9922 | -5/Archives | Entered Hub_04(d) 9922 | -5/Hub_04(d) | Accompanied by 4 allies 10056 | -5/Hub_04(d) | Discovered new exit (range 9) 10158 | -5/Hub_04(d) | Network Hub disabled 10162 | -5/Hub_04(d) | Spotted Lightning 10162 | -5/Hub_04(d) | Spotted Lightning 10162 | -5/Hub_04(d) | Spotted Lightning 10162 | -5/Hub_04(d) | Spotted Lightning 10162 | -5/Hub_04(d) | Spotted Lightning 10162 | -5/Hub_04(d) | Spotted Lightning 10162 | -5/Hub_04(d) | Spotted Lightning 10162 | -5/Hub_04(d) | Spotted Lightning 10162 | -5/Hub_04(d) | Spotted Lightning 10162 | -5/Hub_04(d) | Spotted Lightning 10162 | -5/Hub_04(d) | Spotted Lightning 10162 | -5/Hub_04(d) | Spotted Lightning 10175 | -5/Hub_04(d) | Entered Factory 10175 | -4/Factory | Evolved 2 slots: Propulsion x1, Utility x1 10178 | -4/Factory | Identified Exp. Terrain Scan Processor 10351 | -4/Factory | Spotted B-86 Titan 10370 | -4/Factory | Allies destroyed B-86 Titan 10634 | -4/Factory | Repaired Centrium Heavy Treads 10743 | -4/Factory | Repaired Centrium Heavy Treads 10853 | -4/Factory | Repaired Centrium Heavy Treads 10988 | -4/Factory | Discovered new exit (range 5) 11003 | -4/Factory | Entered Research 11003 | -3/Research | Evolved 2 slots: Utility x1, Weapon x1 11203 | -3/Research | Revision forces began assault on 0b10 11252 | -3/Research | Met up with Revision 17++ 11316 | -3/Research | Build established: Scavenger-Executioner 11481 | -3/Research | Destroyed 7 combat bots 11595 | -3/Research | Discovered new exit (range 44) 11703 | -3/Research | Research terminal network offline 11834 | -3/Research | Entered Testing 11926 | -3/Testing | Found Prototype Ballistic Gun 11926 | -3/Testing | Identified Hyp. Multirail 11999 | -3/Testing | Found Tactical Quantum Warhead 12070 | -3/Testing | Spotted Striker 12078 | -3/Testing | Spotted Striker 12081 | -3/Testing | Found Adv. Kinecellerator 12098 | -3/Testing | Spotted Alpha 7 12107 | -3/Testing | Destroyed Striker 12115 | -3/Testing | Destroyed Striker 12139 | -3/Testing | Destroyed Alpha 7 12459 | -3/Testing | Protovariant out of control (PP-5PK11EHCD9) 12459 | -3/Testing | Unleashed a protovariant (PP-5PK11EHCD9) 12525 | -3/Testing | Spotted PP-5PK11EHCD9 12734 | -3/Testing | Spotted Investigator 12735 | -3/Testing | Scanned by Researcher 12738 | -3/Testing | Garrison activated, responded to threat 12742 | -3/Testing | Destroyed Investigator 12800 | -3/Testing | Destroyed 10 combat bots 12873 | -3/Testing | Discovered new exit (range 4) 12897 | -3/Testing | Entered Research 12897 | -2/Research | Evolved 2 slots: Utility x1, Weapon x1 12969 | -2/Research | Repaired Centrium Heavy Treads 13039 | -2/Research | Identified exit to Quarantine 13977 | -2/Research | Entered Quarantine 14127 | -2/Quarantine | Repaired Centrium Medium Armor Plating 14231 | -2/Quarantine | Lost 3 parts (1p2w) 14335 | -2/Quarantine | Found Subatomic Replicator 14513 | -2/Quarantine | System corruption reached 10% 14526 | -2/Quarantine | First assault squad dispatched 14686 | -2/Quarantine | Cryocooling Duct disabled 14701 | -2/Quarantine | Ambient heat levels rising (+20) 14701 | -2/Quarantine | Non-combat units ordered to evacuate 14720 | -2/Quarantine | Self-destructed Last Messages --------------- 14713_ C-65 Expert destroyed. 14713_ Switching to secondary target: C-65 Expert. 14713_ Held in stasis. 14713_ C-65 Expert is analyzing... 14714_ Held in stasis. 14714_ C-65 Expert is analyzing... 14717_ Slug penetrates Wall. 14717_ Slug penetrates C-65 Expert. 14717_ C-65 Expert destroyed. 14717_ Switching to secondary target: C-65 Expert. 14717_ System corrupted: Hvy. Machine Gun targeting data glitched. 14717_ Slug penetrates Wall. 14718_ Held in stasis. 14718_ C-65 Expert is analyzing... 14718_ C-65 Expert calls for reinforcements. 14718_ ALERT: Hostile activity reported, dispatching reinforcements to area. 14718_ Held in stasis. 14718_ C-65 Expert is analyzing... 14720_ Slug penetrates Wall. Map ----- +----------------------------------------------------+ | ?????????????????????????????????????????????????? | | ?????????????????????????????????????????????????? | | ?????????????????????????????????????????????????? | | ?????????????????????????????????????????????????? | | ????????????????????##########???????????????????? | | ????????????????????# #???????????????????? | | ????????????????????# """ #???????????????????? | | ????????????????????# """ = ]#???????????????????? | | ????????????????????# """ #???????????????!???? | | ????????????????????# "S #???????????????????? | | ????????????????????# "" """ #???????????????????? | | ????????????????????# "" """ #??????????#????????? | | #?######????????????? """ #?##?????? #????????? | | #?# #???????????????! ??T"#????? #????????? | | #?# ##################;#### "#### #????????? | | #?# ^ ! =[!!%=% +????????? | | #?# ! ! *!![%! #????????? | | ###=* [ = / =!!= *[ #????????? | | # #%! [!!["" ] / [ !!!! #????????? | | =#=== =%! " *######## ######;########????????? | | =**= = * *" # # #?? #????????????? | | = =! =!! # =!# #?[ "" #????????????? | | ![ =[= !%" # | + #*%= " #????????????? | | * ==![" # !# *# """ " #????????????? | | [ =*" # "" # =%; "]""" #????????????? | | ### =%! # "" # @# """"" #????????????? | | ??# " """ # "" # #?? ??????????????? | | """ """ # " # #???? #????????????? | | """ """ # "" # #??????####????????????? | | # "" # #??????????????????????? | | # "" # *%=#??????????????????????? | | ############### " #!!=!#??????????????????????? | | ??????????????# ?? #%!%c#??????????????????????? | | ??????????????###??#####%##??????????????????????? | | ???????????????????????#c#???????????????????????? | | ???????????????????????# #???????????????????????? | | ???????????????????????#c#???????????????????????? | | ???????????????????????# #???????????????????????? | | ???????????????????????# #???????????????????????? | | ???????????????????????# #???????????????????????? | | ???????????????????????# #???????????????????????? | | ???????????????????????#R#???????????????????????? | | ???????????????????????# ????????????????????????? | | ???????????????????????? ????????????????????????? | | ???????????????????????? ????????????????????????? | | ???????????????????????? ????????????????????????? | | ???????????????????????? ????????????????????????? | | ?????????????????????????????????????????????????? | | ?????????????????????????????????????????????????? | | ?????????????????????????????/???????????????????? | +----------------------------------------------------+ Best States ------------- Heat Dissipation 71 Energy Generation 25 Energy Capacity 350 Matter Stores 300 Matter Capacity 300 Sight Range 22 Terrain Scan Density 10 Armor Coverage 450 Resistance: KI 30 Evasion (%) 40 Targeting Accuracy 8 Target Analysis 8 Core Analysis 8 Recoil Reduction 6 Kinecelleration 50 Item Schematics ----------------- Autogun | -5/Factory | Scanalyzed Imp. Heavy Treads | -5/Factory | Hacked KE Penetrator | -3/Research | Scanalyzed Robot Schematics ------------------ None Fabricated ------------ Y-54 Guardian | x2 | -7/Factory | Preloaded Alien Tech Used ----------------- None Achievements -------------- None Challenges ------------ None Game ------ Seed MobileArcCasing Manual? 0 Play Time 01:41:53 Cumulative 415.7 hours Start 2019.12.29 @ 00:04:53 End 2019.12.29 @ 11:12:49 Sessions 2 Manual Loads 0 Difficulty Rogue Special Mode None Game No. 730 Rogue 730 Adventurer 0 Explorer 0 Win Type - Total 29 Types 22/0/3/3/1/0/0 Lore% 93 Gallery% 91 Achievement% 80 Wizard Run 0 Options --------- ASCII 1 Keyboard 0 Movement Numpad Keybinds 0 Fullscreen 0 Font 14/SmallcapsGlow Map View 76x50 Tactical HUD 1 Map Filters NONE Filters NONE Steam 1 RUN: 33ea5294-f819-4d83-b9bb-469cd459522b